bitfinex/quotes_ETHUSD_20220218
["timestamp","ask_amount","ask_price","bid_price","bid_amount"]
[1645207888587,1.5,2763.2,2762.9,0.90522]
[1645207888988,1.5,2763.2,2762.8,0.01287117]
[1645207889588,3.6809,2763.9,2762.8,0.01287117]
[1645207889789,0.1809,2763.9,2762.8,0.01287117]
[1645207890193,0.09275115,2764.0,2762.8,0.01287117]
[1645207890391,0.09275115,2764.0,2762.8,0.91807167]
[1645207890691,0.09275115,2764.0,2762.8,0.01287117]
[1645207891336,1.08616,2763.9,2762.8,0.01287117]
[1645207891536,0.90526,2763.9,2762.8,0.01287117]
[1645207891737,0.66835839,2763.7,2762.8,0.01287117]
[1645207891942,3.5,2763.6,2762.8,0.01287117]
[1645207892137,0.1809,2763.6,2762.8,0.01287117]
[1645207892338,0.90546,2763.4,2762.8,0.01287117]
[1645207892541,0.04149091,2763.2,2762.3,1.8106463]
[1645207892738,0.04149091,2763.2,2762.3,0.9053]
[1645207893139,0.04149091,2763.2,2762.6,0.63101923]
[1645207893839,0.04149091,2763.2,2762.5,0.9053]
[1645207894042,0.04149091,2763.2,2762.3,1.81057]
[1645207894742,0.04149091,2763.2,2762.4,0.3]
[1645207894939,0.04149091,2763.2,2762.3,1.81057]
[1645207895218,0.04149091,2763.2,2762.4,1.0]
[1645207895416,0.04149091,2763.2,2762.5,1.8104455]
[1645207895615,0.04149091,2763.2,2762.4,0.90526]
[1645207895814,0.04149091,2763.2,2762.3,2.81057]
[1645207896015,0.04149091,2763.2,2762.0,1.81078]
[1645207896615,0.04149091,2763.2,2762.1,0.9054661]
[1645207896824,0.66785711,2762.2,2761.9,1.8108799]
[1645207897027,0.50743933,2763.1,2761.0,0.68919423]
[1645207897028,0.90582,2762.5,2761.0,0.68919423]
[1645207897225,0.1809,2762.4,2760.9,0.4672]
[1645207897419,0.1809,2762.4,2760.6,0.1809]
[1645207897624,10.93,2762.0,2760.5,0.1809]
[1645207897820,10.93,2762.0,2760.1,3.17]
[1645207897821,0.1809,2761.9,2760.1,3.17]
[1645207898021,0.90615,2761.4,2760.2,1.53922159]
[1645207898220,0.532371,2761.8,2760.7,0.61830505]
[1645207898421,0.1809,2761.7,2760.7,0.61830505]
[1645207898621,1.1686,2762.3,2760.7,0.61830505]
[1645207898842,1.1686,2762.3,2760.8,1.71985168]
[1645207899044,0.1809,2762.6,2760.9,1.53895168]
[1645207899244,3.5,2762.7,2761.2,0.90569]
[1645207899443,3.5,2762.7,2761.2,1.20569]
[1645207899846,0.67261135,2762.4,2761.3,0.69545665]
[1645207900245,0.67261135,2762.4,2761.4,0.90563]
[1645207901645,1.57829135,2762.4,2761.4,0.90563]
[1645207901845,1.57829135,2762.4,2761.3,1.60113165]
[1645207902047,5.49217,2762.8,2761.5,0.9056158]
[1645207902245,1.99217,2762.8,2761.5,0.9056158]
[1645207902687,1.99217,2762.8,2761.5,0.8456158]
[1645207902887,0.59840096,2762.5,2761.5,0.8456158]
[1645207903089,0.59840096,2762.5,2761.7,0.9055405]
[1645207904089,0.1809,2762.9,2761.7,0.9055405]
[1645207904090,0.1809,2762.9,2761.8,0.90551]
[1645207904290,4.25053615,2763.1,2761.8,0.90551]
[1645207904291,1.4087,2763.1,2761.8,1.20551]
[1645207904489,0.2642,2763.1,2762.1,0.9054203]
[1645207905291,0.51755975,2762.9,2762.1,0.9054203]
[1645207905492,0.51755975,2762.9,2762.1,1.8108403]
[1645207905691,0.51755975,2762.9,2762.1,0.90542]
[1645207905894,0.2642,2763.1,2762.3,0.9053662]
[1645207906551,0.2642,2763.1,2762.3,1.8107362]
[1645207907752,0.2642,2763.1,2762.3,0.9053662]
[1645207909652,0.2642,2763.1,2762.3,1.810735]
[1645207909855,0.2642,2763.1,2762.1,2.110703]
[1645207910484,0.2642,2763.1,2762.1,1.810703]
[1645207911082,0.68095515,2763.0,2762.1,1.810703]
[1645207911482,0.68095515,2763.0,2761.9,1.99168]
[1645207911887,0.68095515,2763.0,2762.0,0.905463]
[1645207912082,0.68095515,2763.0,2762.1,0.90542]
[1645207912885,0.2642,2763.1,2762.1,1.20542]
[1645207913085,0.2642,2763.1,2762.3,0.90537]
[1645207913935,0.2642,2763.1,2762.6,0.68045733]
[1645207914535,0.2642,2763.1,2762.4,0.9053251]
[1645207915133,0.2642,2763.1,2762.3,0.90537]
[1645207915435,0.2642,2763.1,2762.3,1.8107534]
[1645207915832,0.2642,2763.1,2762.3,0.90537]
[1645207916333,0.2642,2763.1,2762.2,1.3]
[1645207916537,0.2642,2763.1,2762.4,0.54273999]
[1645207917133,0.2642,2763.1,2762.4,0.84273999]
[1645207917333,0.88184435,2763.6,2762.4,0.84273999]
[1645207917591,0.43235161,2763.7,2762.6,0.90517]
[1645207917792,0.09275115,2764.0,2762.7,0.717]
[1645207918592,0.09275115,2764.0,2762.9,2.7150664]
[1645207918790,0.09275115,2764.0,2763.2,1.59285244]
[1645207919391,0.09275115,2764.0,2763.2,0.68779244]
[1645207919691,0.99796115,2764.0,2763.0,1.0]
[1645207919891,0.99796115,2764.0,2762.7,1.8031081]
[1645207920091,0.99796115,2764.0,2762.8,2.11027]
[1645207920293,0.99796115,2764.0,2762.8,1.81027]
[1645207920294,3.5,2763.9,2762.8,1.81027]
[1645207920498,3.5,2763.9,2761.7,0.01201659]
[1645207920499,1.34005485,2763.7,2761.7,0.01201659]
[1645207920698,1.34005485,2763.7,2761.7,0.61151528]
[1645207920699,0.62994279,2762.8,2761.7,0.61151528]
[1645207920896,0.62994279,2762.8,2761.4,2.7304]
[1645207921094,0.62994279,2762.8,2761.2,1.81102]
[1645207921340,0.62994279,2762.8,2761.3,1.53864982]
[1645207921538,0.62994279,2762.8,2761.5,1.81109]
[1645207922140,0.62994279,2762.8,2761.6,0.9055477]
[1645207922340,0.62994279,2762.8,2761.6,1.45438707]
[1645207922341,0.1809,2762.7,2761.6,1.45438707]
[1645207923343,0.1809,2763.0,2761.8,0.90555]
[1645207923539,11.42756372,2763.2,2762.1,0.9054313]
[1645207923540,0.1809,2763.1,2762.1,0.9054313]
[1645207924139,0.88443065,2763.1,2761.9,1.81088]
[1645207924539,0.1809,2763.1,2762.1,0.56243395]
[1645207924740,0.1809,2763.2,2762.2,0.90542]
[1645207925187,0.1809,2763.3,2762.2,0.90542]
[1645207925588,0.1809,2763.5,2762.2,1.90542]
[1645207925792,0.1809,2763.5,2762.7,0.90522]
[1645207925989,0.1809,2763.6,2762.7,0.90522]
[1645207926292,0.1809,2763.6,2762.6,2.50474381]
[1645207926490,0.01454741,2763.7,2762.6,2.50474381]
[1645207926689,0.90786529,2763.7,2762.6,2.50474381]
[1645207926988,0.90786529,2763.7,2762.9,0.9051871]
[1645207927590,0.89331788,2763.8,2762.7,1.90517]
[1645207927891,0.89331788,2763.8,2763.0,0.9051264]
[1645207928090,1.3577,2764.2,2763.0,0.9051264]
[1645207928091,0.89331788,2763.9,2763.0,0.9051264]
[1645207928292,0.89331788,2763.9,2763.0,1.9051264]
[1645207928489,0.89331788,2763.9,2763.4,0.64830596]
[1645207928951,0.89331788,2764.0,2763.4,0.64830596]
[1645207929356,0.89331788,2764.1,2763.4,0.64830596]
[1645207929550,0.90499,2764.7,2763.4,1.55331186]
[1645207929551,0.89331788,2764.2,2763.4,1.55331186]
[1645207929753,1.9021,2764.9,2763.5,0.90494]
[1645207929754,0.89331788,2764.3,2763.5,0.90494]
[1645207930050,0.89331788,2764.3,2763.6,2.2265898]
[1645207930256,0.89331788,2764.4,2763.6,2.2265898]
[1645207930451,0.89331788,2764.4,2764.0,0.67530931]
[1645207930653,0.89331788,2764.4,2764.0,0.37737225]
[1645207931252,0.89331788,2764.5,2764.0,0.37737225]
[1645207931452,0.89331788,2764.5,2763.9,1.8095143]
[1645207931853,1.34005485,2764.7,2764.0,1.20476]
[1645207931854,0.89331788,2764.7,2764.0,1.20476]
[1645207932054,0.00257701,2765.4,2764.2,0.9046609]
[1645207932055,0.89331788,2764.9,2764.2,0.9046609]
[1645207932356,0.89331788,2764.9,2764.3,0.417]
[1645207932585,0.89331788,2765.0,2764.3,2.2262039]
[1645207932785,0.89331788,2765.0,2764.5,0.64739419]
[1645207932985,0.89331788,2765.0,2764.6,0.90458]
[1645207933185,0.89331788,2765.0,2764.7,0.9045931]
[1645207933492,0.89331788,2765.1,2764.7,0.9045931]
[1645207934085,0.89331788,2765.3,2764.7,1.8091431]
[1645207934286,0.89589536,2765.4,2764.9,0.9045041]
[1645207934987,0.00257759,2765.4,2764.9,0.9045041]
[1645207935189,0.89589547,2765.4,2764.9,0.9045041]
[1645207935387,0.89331788,2765.2,2764.6,0.3]
[1645207935586,0.89331788,2765.2,2764.4,0.3]
[1645207935886,0.89331788,2765.3,2764.4,0.3]
[1645207936348,0.00257781,2765.4,2763.4,2.00638]
[1645207936349,0.54413404,2764.4,2763.4,2.00638]
[1645207936546,0.54413404,2764.4,2763.4,0.1967]
[1645207936747,0.84413404,2764.4,2763.4,0.1967]
[1645207936945,0.1809,2764.3,2763.4,0.1967]
[1645207937251,11.82331788,2764.2,2763.4,0.1967]
[1645207937445,0.90527,2763.9,2763.4,0.1967]
[1645207937645,10.93,2763.8,2763.4,0.1967]
[1645207937844,10.93,2763.8,2763.2,0.3933]
[1645207937845,11.1109,2763.8,2763.2,0.3933]
[1645207938246,0.1809,2763.8,2763.2,0.3933]
[1645207938445,1.32248,2763.7,2763.2,0.3933]
[1645207938649,1.81093,2763.5,2763.2,0.3933]
[1645207938945,2.7164,2763.5,2763.2,0.3933]
[1645207939346,0.1809,2763.4,2763.2,0.3933]
[1645207939746,1.08636,2763.4,2763.2,0.3933]
[1645207939945,14.43,2763.3,2763.2,0.3933]
[1645207940197,10.93,2763.3,2763.2,0.3933]
[1645207940396,1.9919,2763.4,2763.2,0.3933]
[1645207940397,16.7219,2763.4,2763.2,0.3933]
[1645207940593,17.21946372,2763.4,2763.2,0.3933]
[1645207940798,13.2219,2763.4,2763.2,0.3933]
[1645207940995,1.08636,2763.4,2763.2,0.3933]
[1645207941203,1.7933451,2763.6,2763.2,0.3933]
[1645207941504,0.7071251,2763.6,2763.2,0.3933]
[1645207942294,1.6124351,2763.6,2763.2,0.3933]
[1645207942496,1.6124351,2763.6,2763.2,0.2433]
[1645207943000,0.09275115,2763.9,2763.2,0.2433]
[1645207943594,1.08595,2764.4,2763.2,0.2433]
[1645207943595,0.89331788,2764.4,2763.2,0.2433]
[1645207943849,0.63653373,2764.4,2763.3,0.68523548]
[1645207944039,0.63653373,2764.4,2763.6,0.90488]
[1645207944239,1.07421788,2764.6,2763.6,0.90488]
[1645207944439,0.89331788,2764.6,2763.6,0.90488]
[1645207944639,0.89331788,2764.6,2763.6,1.8097277]
[1645207944839,0.89331788,2764.6,2763.6,0.90488]
[1645207944840,1.19331788,2764.6,2763.6,0.90488]
[1645207945241,1.76605807,2764.6,2763.3,1.80976]
[1645207945441,1.76605807,2764.6,2763.2,0.2433]
[1645207945442,0.89331788,2764.3,2763.2,0.2433]
[1645207945641,0.90527,2764.0,2763.2,0.2433]
[1645207945840,0.90528,2763.8,2763.2,0.2433]
[1645207946450,1.42309717,2763.8,2763.2,0.2433]
[1645207947243,0.1809,2763.7,2763.2,0.2433]
[1645207947445,0.90535,2763.6,2763.2,0.2433]
[1645207947892,0.1809,2763.7,2763.2,0.2433]
[1645207948894,2.8971405,2763.7,2763.2,0.2433]
[1645207949096,2.8971405,2763.7,2763.2,0.0933]
[1645207949295,0.89331788,2763.4,2763.2,0.0525655]
[1645207949496,0.88549,2763.4,2763.2,0.0525655]
[1645207949797,1.07421788,2763.5,2763.2,0.0525655]
[1645207949798,0.1809,2763.5,2763.2,0.0525655]
[1645207949997,0.1809,2763.7,2763.2,0.0525655]
[1645207950396,1.59573505,2763.8,2763.2,0.0525655]
[1645207950595,1.79862788,2763.7,2763.2,0.0525655]
[1645207950817,12.00421788,2763.6,2763.2,0.0525655]
[1645207950996,1.07421788,2763.6,2763.2,0.0525655]
[1645207951199,1.97961788,2763.6,2763.2,0.0525655]
[1645207951647,1.0863,2763.6,2763.2,0.0525655]
[1645207951838,0.63201402,2763.3,2763.2,0.0525655]
[1645207952239,0.01539858,2763.5,2763.2,0.0525655]
[1645207955593,0.89331788,2763.4,2763.2,0.0525655]
[1645207955793,1.41623593,2763.4,2763.2,0.0525655]
[1645207955992,1.59713593,2763.4,2763.2,0.0525655]
[1645207956994,1.61251513,2763.4,2763.2,0.0525655]
[1645207958192,0.71919725,2763.4,2763.2,0.0525655]
[1645207959241,13.2892521,2763.4,2762.1,0.1809]
[1645207959449,11.82591437,2763.0,2762.1,0.1809]
[1645207959642,0.89591437,2762.9,2762.1,0.1809]
[1645207959843,2.70761437,2762.9,2762.1,0.1809]
[1645207960042,1.8117,2762.9,2762.1,0.1809]
[1645207960642,0.61653235,2762.5,2762.1,0.1809]
[1645207961243,0.1809,2762.9,2762.1,0.1809]
[1645207961444,0.417,2763.1,2762.1,0.1809]
[1645207961445,0.1809,2763.1,2762.1,0.1809]
[1645207961642,0.3153792,2763.4,2762.1,0.1809]
[1645207961643,0.1809,2763.2,2762.1,0.1809]
[1645207961844,1.08633,2763.3,2762.1,0.1809]
[1645207962049,0.89591437,2763.1,2762.1,1.08635]
[1645207962247,0.57313082,2763.0,2762.1,0.1809]
[1645207962888,0.90565,2762.8,2762.1,0.1809]
[1645207963390,0.90565,2762.8,2761.5,3.5]
[1645207963391,1.8113,2762.8,2761.5,3.5]
[1645207963588,0.90565,2762.8,2761.3,5.685]
[1645207963788,0.54871942,2762.4,2761.4,2.53874212]
[1645207963990,0.54871942,2762.4,2761.4,1.0]
[1645207964391,0.54871942,2762.4,2761.3,0.3]
[1645207964595,1.45444942,2762.4,2761.4,1.53874399]
[1645207964788,1.45444942,2762.4,2761.4,1.83874399]
[1645207964990,0.54871942,2762.4,2761.5,1.53874399]
[1645207965388,0.54871942,2762.4,2761.5,2.53874399]
[1645207965588,0.54871942,2762.4,2761.5,1.0]
[1645207965789,0.54871942,2762.4,2761.4,0.144832]
[1645207965995,0.54871942,2762.4,2761.5,0.90561]
[1645207966442,2.54070111,2762.9,2761.5,0.90561]
[1645207966837,1.81122,2762.8,2761.6,0.9055581]
[1645207967038,0.1809,2762.9,2761.8,0.90553]
[1645207967240,0.1809,2763.0,2761.8,0.90553]
[1645207967639,0.66806515,2763.1,2762.0,0.60140361]
[1645207967837,0.1809,2763.0,2762.0,0.60140361]
[1645207968038,1.08631,2763.4,2762.0,2.41227301]
[1645207968239,1.08631,2763.4,2762.0,5.00681301]
[1645207968438,1.08631,2763.4,2762.1,0.717]
[1645207968439,0.1809,2763.4,2762.1,0.717]
[1645207968637,1.07681437,2763.5,2762.1,0.717]
[1645207968840,0.1809,2763.5,2762.2,5.03843627]
[1645207969039,0.79,2763.6,2762.3,2.86072627]
[1645207969237,0.79,2763.6,2762.6,0.63524167]
[1645207969438,0.79,2763.6,2762.9,0.9050813]
[1645207969640,0.79,2763.6,2762.9,0.417]
[1645207970088,0.79,2763.6,2762.6,0.63524167]
[1645207970289,0.79,2763.6,2762.5,1.417]
[1645207970489,0.79,2763.6,2762.5,0.717]
[1645207971091,0.79,2763.6,2763.1,0.4672]
[1645207971289,0.52008076,2763.3,2763.1,0.4672]
[1645207971490,0.52008076,2763.3,2762.4,0.90528]
[1645207971691,0.9709,2763.6,2762.7,0.90524]
[1645207971692,0.79,2763.6,2762.7,0.90524]
[1645207971891,0.79,2763.6,2762.3,3.5]
[1645207972189,0.79,2763.6,2762.2,3.22759]
[1645207972393,0.79,2763.6,2762.3,1.83833367]
[1645207972590,0.79,2763.6,2762.4,1.810342]
[1645207972790,0.56481417,2763.5,2762.3,0.3]
[1645207972990,0.56481417,2763.5,2762.4,2.44360428]
[1645207973191,0.56481417,2763.5,2762.5,0.3]
[1645207973851,0.56481417,2763.5,2762.5,1.3]
[1645207974039,0.56481417,2763.5,2762.4,1.3]
[1645207974240,0.56481417,2763.5,2762.3,2.5053198]
[1645207974643,0.56481417,2763.5,2762.3,2.2053198]
[1645207974842,0.56481417,2763.5,2762.3,1.9053198]
[1645207975047,0.56481417,2763.5,2762.3,3.1105798]
[1645207975246,0.56481417,2763.5,2762.4,0.90526]
[1645207975644,0.56481417,2763.5,2762.6,0.9052154]
[1645207976146,0.79,2763.6,2762.7,1.81035]
[1645207976346,0.79,2763.6,2762.7,5.4052]
[1645207976545,0.79,2763.6,2762.7,4.8]
[1645207976747,0.79,2763.6,2762.7,1.6]
[1645207977345,0.79,2763.6,2762.8,0.66427746]
[1645207977596,0.79,2763.6,2762.6,4.0373534]
[1645207977792,0.79,2763.6,2762.2,0.417]
[1645207977793,1.69536,2763.6,2762.2,0.417]
[1645207977992,1.69536,2763.6,2762.1,1.0]
[1645207977993,2.59127437,2763.6,2762.1,1.0]
[1645207978194,2.59127437,2763.6,2762.2,1.5384225]
[1645207978393,2.59127437,2763.6,2762.2,1.8384225]
[1645207978394,0.89591437,2763.5,2762.2,1.8384225]
[1645207978594,0.89591437,2763.5,2762.2,0.3]
[1645207978595,0.5797615,2763.0,2762.2,0.3]
[1645207978796,0.5797615,2763.0,2762.0,1.9448]
[1645207978996,0.5797615,2763.0,2762.1,1.53854465]
[1645207979495,0.5797615,2763.0,2762.0,1.53854465]
[1645207979697,0.5797615,2763.0,2762.1,1.53856207]
[1645207979897,0.5797615,2763.0,2761.9,0.90547]
[1645207980100,0.5797615,2763.0,2762.0,1.53858698]
[1645207980701,0.5797615,2763.0,2761.8,0.54976294]
[1645207980898,0.90557,2762.9,2761.9,1.53863855]
[1645207981740,1.08647,2762.9,2761.9,1.53863855]
[1645207982143,0.90557,2762.9,2761.9,1.53863855]
[1645207982342,1.08647,2762.9,2761.9,1.53863855]
[1645207983144,1.08647,2762.9,2761.9,1.53773396]
[1645207983744,0.90557,2762.8,2761.9,1.53773396]
[1645207984045,1.81116,2762.8,2761.9,1.53773396]
[1645207985091,0.90559,2762.8,2761.9,1.53773396]
[1645207985293,0.66702128,2762.5,2761.9,1.53773396]
[1645207985691,1.08643,2763.0,2761.9,1.53773396]
[1645207986090,0.90553,2763.0,2761.9,1.53773396]
[1645207986293,0.1809,2763.2,2761.9,2.44321396]
[1645207986494,1.07681437,2763.2,2761.9,0.90548]
[1645207986693,0.89591437,2763.3,2762.3,0.61669694]
[1645207987095,0.0159648,2763.5,2762.3,0.91669694]
[1645207987294,0.0159648,2763.5,2762.4,1.32225]
[1645207987495,0.0159648,2763.5,2762.5,0.90526]
[1645207987694,0.01780773,2762.8,2762.6,0.417]
[1645207987895,0.01780773,2762.8,2762.2,1.8105189]
[1645207988093,0.01780773,2762.8,2762.0,3.3013]
[1645207988094,0.01780773,2762.8,2762.0,1.8843]
[1645207988293,0.01780773,2762.8,2762.0,2.1843]
[1645207988494,0.01780773,2762.8,2761.8,1.84976294]
[1645207988694,0.01780773,2762.8,2762.1,1.81059]
[1645207988945,0.01780773,2762.8,2761.8,0.54976294]
[1645207991544,0.01780773,2762.8,2761.9,1.8108841]
[1645207991746,0.01780773,2762.8,2761.9,0.9054141]
[1645207991944,0.01780773,2762.8,2761.9,2.7161241]
[1645207992148,0.1809,2763.2,2762.3,0.018033]
[1645207992348,1.07681437,2763.6,2762.4,0.01894488]
[1645207992596,0.89591437,2763.7,2762.4,3.69984488]
[1645207992796,2.4058,2763.8,2762.4,3.69984488]
[1645207992797,3.30171437,2763.8,2762.5,0.417]
[1645207992995,0.67805441,2763.8,2762.6,0.62519209]
[1645207993197,0.67805441,2763.8,2762.7,0.717]
[1645207993393,0.67805441,2763.8,2762.7,1.717]
[1645207993795,0.67805441,2763.8,2762.7,0.717]
[1645207994295,1.57396878,2763.8,2762.7,0.717]
[1645207994694,0.89591437,2763.7,2762.7,0.717]
[1645207994894,0.90535,2763.5,2762.7,0.717]
[1645207995093,0.90535,2763.5,2762.4,0.19984488]
[1645207995697,0.90534,2763.6,2762.4,0.19984488]
[1645207995894,1.80120437,2763.7,2762.4,0.19984488]
[1645207996096,0.90529,2763.7,2762.4,0.19984488]
[1645207996343,0.53157596,2763.3,2762.4,0.19984488]
[1645207997343,0.89591437,2763.8,2762.5,0.9052307]
[1645207997547,0.89591437,2764.0,2762.6,3.5]
[1645207997746,0.89591437,2764.1,2762.7,0.73588892]
[1645207997945,0.98866552,2764.2,2762.7,1.73588892]
[1645207998349,0.53436319,2764.0,2762.9,0.9050881]
[1645207998544,0.53436319,2764.0,2762.8,1.52423007]
[1645207998545,1.43027756,2764.0,2762.8,0.3]
[1645207998750,1.43027756,2764.0,2762.8,1.717]
[1645207999147,0.53436319,2764.0,2762.8,0.717]
[1645207999544,1.43955319,2764.0,2762.8,0.417]
[1645207999745,1.43955319,2764.0,2762.9,0.90517]
[1645207999945,0.53436319,2764.0,2762.9,0.90517]
[1645208000395,0.53436319,2764.0,2762.9,1.90517]
[1645208000595,0.53436319,2764.0,2763.0,0.580166]
[1645208000795,0.53436319,2764.0,2763.1,0.9051]
[1645208000998,1.89379552,2764.2,2763.1,0.9051]
[1645208001405,2.79893552,2764.2,2763.0,0.580166]
[1645208001596,2.79893552,2764.2,2763.0,1.580166]
[1645208001897,0.89591437,2764.0,2763.0,0.880166]
[1645208002097,0.89591437,2764.0,2763.0,1.880166]
[1645208002098,0.61772619,2763.8,2763.0,1.880166]
[1645208002297,0.61772619,2763.8,2763.0,0.580166]
[1645208002898,0.61772619,2763.8,2763.0,0.880166]
[1645208003099,1.51364056,2763.8,2763.0,0.880166]
[1645208003298,1.52298619,2763.8,2763.0,0.880166]
[1645208003501,1.52298619,2763.8,2763.0,0.580166]
[1645208004350,2.42827619,2763.8,2763.0,0.580166]
[1645208004548,2.42827619,2763.8,2763.0,0.57905882]
[1645208004747,1.52298619,2763.8,2763.0,0.57905882]
[1645208005149,0.61772619,2763.8,2763.0,0.57905882]
[1645208005347,0.89591437,2764.0,2763.0,0.57905882]
[1645208005548,0.89591437,2764.0,2763.0,0.87905882]
[1645208005747,0.1809,2764.1,2763.0,0.57905882]
[1645208005748,0.89591437,2764.1,2763.0,0.57905882]
[1645208005949,0.89591437,2764.1,2763.0,1.57905882]
[1645208006151,1.80110437,2764.0,2763.0,0.57905882]
[1645208006451,0.55290572,2763.8,2763.0,0.57905882]
[1645208006650,12.37882009,2763.8,2763.0,0.57905882]
[1645208006849,0.1809,2763.7,2763.0,0.57905882]
[1645208007248,1.07681437,2763.7,2763.0,0.57905882]
[1645208007599,0.90541,2763.6,2763.0,0.57905882]
[1645208007799,12.01628,2763.5,2763.1,0.01766919]
[1645208008001,0.89591437,2763.4,2763.2,0.01879644]
[1645208008299,0.1809,2763.3,2763.2,0.00119644]
[1645208008802,0.17975017,2763.3,2763.2,0.00119644]
[1645208008999,0.70093461,2763.3,2763.2,0.00119644]
[1645208009600,0.17975017,2763.3,2763.2,0.00119644]
[1645208009801,1.80147437,2763.5,2763.2,0.00119644]
[1645208010001,0.89591437,2763.5,2763.2,0.00119644]
[1645208010602,1.34005485,2763.7,2763.2,0.00119644]
[1645208010603,0.61508063,2763.3,2763.2,0.00119644]
[1645208010999,0.1809,2763.4,2763.2,0.00119644]
[1645208011200,0.89591437,2763.6,2763.2,0.00119644]
[1645208012243,0.69408593,2763.5,2763.2,0.00119644]
[1645208012443,0.0190943,2763.3,2763.1,0.144798]
[1645208012644,0.9245143,2763.3,2763.0,0.57905882]
[1645208013145,0.0190943,2763.3,2763.0,0.57905882]
[1645208018300,0.9245243,2763.3,2763.0,0.57905882]
[1645208018699,0.0190943,2763.3,2763.0,0.57905882]
[1645208019770,0.1809,2764.1,2763.1,1.8102014]
[1645208019968,0.09275115,2764.2,2763.3,1.8099415]
[1645208020171,0.09275115,2764.2,2763.4,0.70046659]
[1645208020769,0.09275115,2764.2,2763.2,0.561767]
[1645208021068,0.09275115,2764.2,2763.2,0.417]
[1645208021268,0.09275115,2764.2,2763.2,2.52692]
[1645208021469,0.09275115,2764.2,2763.2,2.22692]
[1645208021870,0.09275115,2764.2,2763.3,1.01557317]
[1645208022168,0.09275115,2764.2,2763.1,1.0]
[1645208022469,0.09275115,2764.2,2763.0,0.57905882]
[1645208022470,12.27005485,2764.1,2763.0,0.57905882]
[1645208022703,12.27005485,2763.8,2763.0,0.57905882]
[1645208023003,10.93,2763.4,2763.0,0.57905882]
[1645208023204,12.37779015,2763.2,2763.0,0.57905882]
[1645208023503,0.1809,2763.1,2763.0,0.57905882]
[1645208023702,0.4809,2763.1,2763.0,0.57905882]
[1645208024104,0.4809,2763.1,2763.0,0.32254053]
[1645208025304,0.4809,2763.1,2762.0,0.00278787]
[1645208025305,15.33571,2763.0,2762.0,0.00278787]
[1645208025507,15.33571,2763.0,2761.7,0.00278787]
[1645208025508,10.93,2762.7,2761.7,0.00278787]
[1645208025704,0.1809,2762.6,2761.7,0.00278787]
[1645208025904,1.1809,2762.6,2761.7,0.00278787]
[1645208026105,1.4809,2762.6,2761.7,0.00278787]
[1645208026341,0.1809,2762.6,2761.7,0.00278787]
[1645208026544,0.90567,2762.6,2761.7,1.54176916]
[1645208026754,0.90567,2762.6,2761.8,1.53898129]
[1645208026947,0.90567,2762.6,2761.8,0.00278787]
[1645208027142,0.90567,2762.6,2761.6,1.54164838]
[1645208027343,0.64181114,2762.5,2761.7,0.00278787]
[1645208027542,0.64181114,2762.5,2761.7,1.54164838]
[1645208027543,0.90574,2762.4,2761.7,1.54164838]
[1645208027744,0.90574,2762.4,2761.5,0.00278787]
[1645208028143,0.90569,2762.5,2761.5,0.00278787]
[1645208028342,0.90569,2762.5,2761.5,1.54166294]
[1645208028545,0.90569,2762.5,2761.6,1.54166294]
[1645208028744,0.90567,2762.6,2761.7,1.53887507]
[1645208028943,0.90567,2762.6,2761.8,1.54166294]
[1645208029144,0.90567,2762.6,2761.6,0.00278787]
[1645208029746,1.20567,2762.6,2761.6,0.00278787]
[1645208029944,11.8357,2762.5,2761.6,1.54165374]
[1645208030192,0.9058,2762.3,2761.4,0.00278787]
[1645208030692,0.56643852,2762.2,2761.4,0.00278787]
[1645208032099,1.08661,2762.5,2761.4,0.00278787]
[1645208032496,1.08661,2762.5,2761.4,1.54174628]
[1645208032895,1.08661,2762.5,2761.7,0.02215725]
[1645208033095,1.99232,2762.5,2761.7,0.02215725]
[1645208033295,2.55055456,2762.5,2761.7,0.02215725]
[1645208033945,1.64484456,2762.5,2761.7,0.02215725]
[1645208034143,0.48540002,2762.8,2761.7,0.02215725]
[1645208034144,1.81124,2762.8,2761.7,0.02215725]
[1645208034345,1.81124,2762.8,2761.8,1.53881809]
[1645208034545,1.81124,2762.8,2761.9,0.00278787]
[1645208034546,0.9056,2762.8,2761.9,0.00278787]
[1645208034747,0.9056,2762.8,2761.7,0.02215725]
[1645208034944,0.1809,2762.7,2761.7,0.02215725]
[1645208035145,0.1809,2762.8,2761.7,0.02215725]
[1645208035344,0.69549941,2762.4,2761.7,0.02215725]
[1645208036547,0.1809,2762.8,2761.7,0.02215725]
[1645208036745,0.90564,2762.7,2761.7,0.02494512]
[1645208036945,3.05796,2762.9,2761.8,1.53880911]
[1645208037145,3.74379,2763.2,2761.9,3.50278787]
[1645208037349,0.89841539,2763.3,2761.9,3.50278787]
[1645208037596,0.63421431,2763.0,2762.2,0.9054038]
[1645208037796,0.63421431,2763.0,2762.2,1.2054038]
[1645208038396,0.89841539,2763.3,2762.2,0.3]
[1645208038397,0.90548,2763.2,2762.2,0.3]
[1645208038598,1.81097,2763.2,2762.1,0.00278787]
[1645208039198,0.89841539,2763.3,2762.2,0.905426]
[1645208039400,1.80386539,2763.3,2762.2,0.905426]
[1645208039599,0.63784648,2763.0,2762.1,0.00278787]
[1645208040098,0.63784648,2763.0,2761.9,0.02490364]
[1645208040497,0.63784648,2763.0,2762.0,0.144825]
[1645208040698,0.63784648,2763.0,2762.1,0.00278787]
[1645208041100,0.63784648,2763.0,2761.9,0.93039204]
[1645208042343,0.63784648,2763.0,2761.9,0.90827627]
[1645208042344,0.01676494,2762.9,2761.9,0.90827627]
[1645208042547,0.01676494,2762.9,2761.9,0.00278787]
[1645208042745,0.1809,2762.8,2761.9,0.00278787]
[1645208042944,0.1809,2762.8,2761.7,0.00278787]
[1645208043148,10.93,2762.7,2761.7,0.00278787]
[1645208043344,0.90586,2762.4,2761.7,0.00278787]
[1645208043745,0.59026916,2762.0,2761.7,0.00278787]
[1645208043943,0.59026916,2762.0,2761.6,0.53296046]
[1645208044745,1.81176,2762.4,2761.6,0.53296046]
[1645208044944,1.81176,2762.4,2761.6,0.53574833]
[1645208045203,0.90579,2762.3,2761.6,0.53574833]
[1645208045600,1.81154,2762.3,2761.6,0.00278787]
[1645208045800,0.63986377,2762.0,2761.6,0.00278787]
[1645208046000,0.63986377,2762.0,2761.3,0.00278787]
[1645208046202,0.63986377,2762.0,2761.3,1.54189096]